Workbook

Sheet CS 10.5.1
D1: Ebert | E1: Ratings
C2: Down | D2: Sideways | E2: Up
A3: Siskel | B3: Down | C3: 24 | D3: 8 | E3: 13 | F3: =SUM(C3:E3) -> 45
A4: Ratings | B4: Sideways | C4: 8 | D4: 13 | E4: 11 | F4: =SUM(C4:E4) -> 32
B5: Up | C5: 10 | D5: 9 | E5: 64 | F5: =SUM(C5:E5) -> 83
C6: =SUM(C3:C5) -> 42 | D6: =SUM(D3:D5) -> 30 | E6: =SUM(E3:E5) -> 88 | F6: =SUM(C6:E6) -> 160
A8: assuming | C8: =C$11*$F8/$F$11 -> 11.8125 | D8: =D$11*$F8/$F$11 -> 8.4375 | E8: 24.75 | F8: 45
A9: independence | C9: =C$11*$F9/$F$11 -> 8.4 | D9: 6 | E9: 17.6 | F9: 32
C10: 21.7875 | D10: 15.5625 | E10: 45.65 | F10: 83
C11: 42 | D11: 30 | E11: 88 | F11: 160
B13: (0-E)^2/E | C13: =(C3-C8)^2/C8 -> 12.57440476 | D13: =(D3-D8)^2/D8 -> 0.02268518519 | E13: 5.578282828
C14: =(C4-C9)^2/C9 -> 0.01904761905 | D14: 8.166666667 | E14: 2.475
C15: =(C5-C10)^2/C10 -> 6.377287722 | D15: 2.767319277 | E15: 7.376177437
B16: TS | C16: =SUM(C13:E15) -> 45.3568715
B17: pvalue | C17: =_xlfn.CHISQ.DIST.RT(C16,4) -> 3.351455865e-09
B18: CV | C18: =_xlfn.CHISQ.INV.RT(0.05,4) -> 9.487729037

Sheet CS 10.5.2
A1: city | B1: stability | C1: suicide | E1: stability | F1: suicide
A2: New York | B2: 54.3 | C2: 19.3 | D2: mean | E2: =AVERAGE(B:B) -> 55.992 | F2: =AVERAGE(C:C) -> 20.76
A3: Chicago | B3: 51.5 | C3: 17 | D3: median | E3: =MEDIAN(B:B) -> 56.5 | F3: =MEDIAN(C:C) -> 19.3
A4: Philadelphia | B4: 64.6 | C4: 17.5
A5: Detroit | B5: 42.5 | C5: 16.5
A6: Los Angeles | B6: 20.3 | C6: 23.8
A7: Cleveland | B7: 52.2 | C7: 20.1
A8: St. Louis | B8: 62.4 | C8: 24.8
A9: Baltimore | B9: 72 | C9: 18
A10: Boston | B10: 59.4 | C10: 14.8
A11: Pittsburgh | B11: 70 | C11: 14.9
A12: San Francisco | B12: 43.8 | C12: 40
A13: Milwaukee | B13: 66.2 | C13: 19.3
A14: Buffalo | B14: 67.6 | C14: 13.8
A15: Washington | B15: 37.1 | C15: 22.5
A16: Minneapolis | B16: 56.3 | C16: 23.8
A17: New Orleans | B17: 82.9 | C17: 17.2
A18: Cincinnati | B18: 62.2 | C18: 23.9
A19: Newark | B19: 51.9 | C19: 21.4
A20: Kansas City | B20: 49.4 | C20: 24.5
A21: Seattle | B21: 30.7 | C21: 31.7
A22: Indianapolis | B22: 66.1 | C22: 21 | G22: 0 | H22: 50 | I22: 65 | J22: 90
A23: Rochester | B23: 68 | C23: 17.2 | E23: too many | G23: 17 | H23: =COUNTIFS($C:$C,"<="&$G23,$C:$C,">"&$G22,$B:$B,"<="&H$22,$B:$B,">"&G$22) -> 1 | I23: 3 | J23: 3 | K23: =SUM(H23:J23) -> 7
A24: Jersey City | B24: 56.5 | C24: 10.1 | E24: interior cells | G24: 22 | H24: 0 | I24: 4 | J24: 5 | K24: =SUM(H24:J24) -> 9
A25: Louisville | B25: 78.7 | C25: 16.6 | E25: only 25 data | G25: 40 | H25: 6 | I25: 3 | J25: 0 | K25: =SUM(H25:J25) -> 9
A26: Portland | B26: 33.2 | C26: 29.3 | E26: points | H26: =SUM(H23:H25) -> 7 | I26: =SUM(I23:I25) -> 10 | J26: =SUM(J23:J25) -> 8 | K26: =SUM(H26:J26) -> 25
E27: 25/n2>=5
F28: using | G28: 0 | H28: 56 | I28: 90
F29: means | G29: 21 | H29: =COUNTIFS($C:$C,"<="&$G29,$C:$C,">"&$G28,$B:$B,"<="&H$28,$B:$B,">"&G$28) -> 4 | I29: =COUNTIFS($C:$C,"<="&$G29,$C:$C,">"&$G28,$B:$B,"<="&I$28,$B:$B,">"&H$28) -> 11 | J29: =SUM(H29:I29) -> 15
G30: 40 | H30: =COUNTIFS($C:$C,"<="&$G30,$C:$C,">"&$G29,$B:$B,"<="&H$28,$B:$B,">"&G$28) -> 7 | I30: =COUNTIFS($C:$C,"<="&$G30,$C:$C,">"&$G29,$B:$B,"<="&I$28,$B:$B,">"&H$28) -> 3 | J30: =SUM(H30:I30) -> 10
H31: =SUM(H29:H30) -> 11 | I31: =SUM(I29:I30) -> 14 | J31: =SUM(H31:I31) -> 25
F33: using | G33: 0 | H33: 56.5 | I33: 90 | L33: (E-O)^2/E | M33: =(H34-H39)^2/H39 -> 1.126863905 | N33: =(I34-I39)^2/I39 -> 1.220769231
F34: medians | G34: 19.5 | H34: =COUNTIFS($C:$C,"<="&$G34,$C:$C,">"&$G33,$B:$B,"<="&H$33,$B:$B,">"&G$33) -> 4 | I34: =COUNTIFS($C:$C,"<="&$G34,$C:$C,">"&$G33,$B:$B,"<="&I$33,$B:$B,">"&H$33) -> 9 | J34: =SUM(H34:I34) -> 13 | M34: =(H35-H40)^2/H40 -> 1.220769231 | N34: =(I35-I40)^2/I40 -> 1.3225
G35: 40 | H35: =COUNTIFS($C:$C,"<="&$G35,$C:$C,">"&$G34,$B:$B,"<="&H$33,$B:$B,">"&G$33) -> 9 | I35: =COUNTIFS($C:$C,"<="&$G35,$C:$C,">"&$G34,$B:$B,"<="&I$33,$B:$B,">"&H$33) -> 3 | J35: =SUM(H35:I35) -> 12 | L35: TS | M35: =SUM(M33:N34) -> 4.890902367
H36: =SUM(H34:H35) -> 13 | I36: =SUM(I34:I35) -> 12 | J36: =SUM(H36:I36) -> 25 | L36: pvalue | M36: =_xlfn.CHISQ.DIST.RT(M35,1) -> 0.02699857152
L37: CV | M37: =_xlfn.CHISQ.INV.RT(0.05,1) -> 3.841458821
F38: Assuming | G38: 0 | H38: 56.5 | I38: 90
F39: indep | G39: 19.5 | H39: =$J39*H$41/$J$41 -> 6.76 | I39: =$J39*I$41/$J$41 -> 6.24 | J39: 13
G40: 40 | H40: =$J40*H$41/$J$41 -> 6.24 | I40: =$J40*I$41/$J$41 -> 5.76 | J40: 12
H41: 13 | I41: 12 | J41: 25

Sheet CS 10.5.3
A1: Accused Witches | D1: Gender
C2: female | D2: male | G2: (E-O)^2/E | H2: =(C3-C8)^2/C8 -> 0.01598216357 | I2: =(D3-D8)^2/D8 -> 0.05121556964
B3: Y | C3: 14 | D3: 5 | E3: =SUM(C3:D3) -> 19 | H3: =(C4-C9)^2/C9 -> 0.001829283783 | I3: =(D4-D9)^2/D9 -> 0.005862023031
A4: Executed | B4: N | C4: 127 | D4: 39 | E4: =SUM(C4:D4) -> 166 | G4: TS | H4: =SUM(H2:I3) -> 0.07488904002
C5: =SUM(C3:C4) -> 141 | D5: =SUM(D3:D4) -> 44 | E5: =SUM(C5:D5) -> 185 | G5: pvalue | H5: =_xlfn.CHISQ.DIST.RT(H4,1) -> 0.784346981
G6: CV | H6: =_xlfn.CHISQ.INV.RT(0.05,1) -> 3.841458821
C7: female | D7: male
A8: assuming | B8: Y | C8: =C$10*$E8/$E$10 -> 14.48108108 | D8: =D$10*$E8/$E$10 -> 4.518918919 | E8: 19
A9: independence | B9: N | C9: =C$10*$E9/$E$10 -> 126.5189189 | D9: =D$10*$E9/$E$10 -> 39.48108108 | E9: 166
C10: 141 | D10: 44 | E10: 185

Sheet HW 10.5.6
C2: Child’s | D2: Blood | E2: Pressure
C3: Lower | D3: Middle | E3: Upper
A4: Father’s | B4: Lower | C4: 14 | D4: 11 | E4: 8 | F4: =SUM(C4:E4) -> 33
A5: blood | B5: Middle | C5: 11 | D5: 11 | E5: 9 | F5: =SUM(C5:E5) -> 31
A6: pressure | B6: Upper | C6: 6 | D6: 10 | E6: 12 | F6: =SUM(C6:E6) -> 28
C7: =SUM(C4:C6) -> 31 | D7: =SUM(D4:D6) -> 32 | E7: =SUM(E4:E6) -> 29 | F7: =SUM(C7:E7) -> 92
C9: =C$12*$F9/$F$12 -> 11.11956522 | D9: =D$12*$F9/$F$12 -> 11.47826087 | E9: 10.40217391 | F9: 33
C10: =C$12*$F10/$F$12 -> 10.44565217 | D10: 10.7826087 | E10: 9.77173913 | F10: 31
C11: 9.434782609 | D11: 9.739130435 | E11: 8.826086957 | F11: 28
C12: 31 | D12: 32 | E12: 29 | F12: 92
B14: (0-E)^2/E | C14: =(C4-C9)^2/C9 -> 0.7461536827 | D14: =(D4-D9)^2/D9 -> 0.01992753623 | E14: 0.5547339966
C15: =(C5-C10)^2/C10 -> 0.02941908338 | D15: 0.004382889201 | E15: 0.06094936403
C16: 1.250450811 | D16: 0.00698757764 | E16: 1.141357892
B17: TS | C17: =SUM(C14:E16) -> 3.814362834
B18: pvalue | C18: =_xlfn.CHISQ.DIST.RT(C17,4) -> 0.43171165
B19: CV | C19: =_xlfn.CHISQ.INV.RT(0.05,4) -> 9.487729037

Sheet smoking
A1: Smoker | B1: Read | E1: read | F1: headline | G1: some | H1: most
A2: 1 | B2: 1 | D2: smoker | F2: 1 | G2: 2 | H2: 3
A3: 4 | B3: 2 | D3: heavy | E3: 1
A4: 4 | B4: 3 | D4: moderate | E4: 2
A5: 3 | B5: 3 | D5: light | E5: 3
A6: 4 | B6: 2 | D6: non | E6: 4
A7: 4 | B7: 3
A8: 2 | B8: 3
A9: 2 | B9: 3
A10: 1 | B10: 3
A11: 4 | B11: 3
A12: 3 | B12: 2
A13: 3 | B13: 3
A14: 3 | B14: 3
A15: 4 | B15: 3
A16: 2 | B16: 1
A17: 3 | B17: 3
A18: 1 | B18: 2
A19: 4 | B19: 2
A20: 1 | B20: 3
A21: 4 | B21: 1
A22: 4 | B22: 2
A23: 1 | B23: 1
A24: 4 | B24: 3
A25: 4 | B25: 1
A26: 2 | B26: 1
A27: 3 | B27: 2
A28: 1 | B28: 3
A29: 1 | B29: 1
A30: 1 | B30: 2
A31: 4 | B31: 3
A32: 3 | B32: 2
A33: 2 | B33: 3
A34: 3 | B34: 1
A35: 3 | B35: 3
A36: 4 | B36: 3
A37: 3 | B37: 3
A38: 3 | B38: 3
A39: 3 | B39: 2
A40: 1 | B40: 2
A41: 2 | B41: 3
A42: 3 | B42: 2
A43: 3 | B43: 1
A44: 4 | B44: 3
A45: 3 | B45: 3
A46: 4 | B46: 3
A47: 2 | B47: 2
A48: 4 | B48: 2
A49: 1 | B49: 1
A50: 1 | B50: 1
A51: 3 | B51: 2
A52: 1 | B52: 1
A53: 4 | B53: 3
A54: 4 | B54: 3
A55: 1 | B55: 1
A56: 3 | B56: 2
A57: 1 | B57: 1
A58: 2 | B58: 3
A59: 1 | B59: 1
A60: 2 | B60: 2
A61: 1 | B61: 2
A62: 1 | B62: 2
A63: 4 | B63: 2
A64: 3 | B64: 3
A65: 4 | B65: 3
A66: 1 | B66: 3
A67: 3 | B67: 1
A68: 3 | B68: 1
A69: 4 | B69: 3
A70: 4 | B70: 2
A71: 4 | B71: 2
A72: 3 | B72: 3
A73: 4 | B73: 2
A74: 4 | B74: 1
A75: 4 | B75: 3
A76: 2 | B76: 3
A77: 4 | B77: 3
A78: 4 | B78: 3
A79: 3 | B79: 2
A80: 4 | B80: 3
A81: 3 | B81: 2
A82: 1 | B82: 1
A83: 4 | B83: 2
A84: 4 | B84: 1
A85: 2 | B85: 2
A86: 1 | B86: 3
A87: 4 | B87: 1
A88: 3 | B88: 3
A89: 2 | B89: 1
A90: 3 | B90: 3
A91: 3 | B91: 3
A92: 2 | B92: 1
A93: 2 | B93: 3
A94: 1 | B94: 2
A95: 1 | B95: 3
A96: 3 | B96: 3
A97: 1 | B97: 2
A98: 4 | B98: 2
A99: 2 | B99: 3
A100: 1 | B100: 1
A101: 3 | B101: 3
A102: 1 | B102: 1
A103: 2 | B103: 3
A104: 1 | B104: 2
A105: 4 | B105: 1
A106: 3 | B106: 3
A107: 4 | B107: 3
A108: 1 | B108: 2
A109: 3 | B109: 2
A110: 3 | B110: 3
A111: 4 | B111: 1
A112: 4 | B112: 2
A113: 2 | B113: 1
A114: 2 | B114: 3
A115: 3 | B115: 1
A116: 1 | B116: 3
A117: 3 | B117: 1
A118: 3 | B118: 1
A119: 4 | B119: 2
A120: 2 | B120: 1
A121: 4 | B121: 3
A122: 4 | B122: 3
A123: 3 | B123: 3
A124: 1 | B124: 2
A125: 3 | B125: 1
A126: 3 | B126: 2
A127: 4 | B127: 2
A128: 4 | B128: 3
A129: 4 | B129: 3
A130: 4 | B130: 1
A131: 4 | B131: 3
A132: 3 | B132: 3
A133: 3 | B133: 3
A134: 3 | B134: 3
A135: 1 | B135: 1
A136: 4 | B136: 2
A137: 1 | B137: 3
A138: 4 | B138: 3
A139: 4 | B139: 3
A140: 1 | B140: 1
A141: 2 | B141: 1
A142: 4 | B142: 3
A143: 1 | B143: 2
A144: 1 | B144: 1
A145: 3 | B145: 1
A146: 2 | B146: 3
A147: 4 | B147: 1
A148: 2 | B148: 1
A149: 3 | B149: 2
A150: 3 | B150: 3
A151: 4 | B151: 1
A152: 1 | B152: 1
A153: 4 | B153: 3
A154: 1 | B154: 1
A155: 1 | B155: 2
A156: 2 | B156: 3
A157: 1 | B157: 1
A158: 2 | B158: 3
A159: 1 | B159: 3
A160: 4 | B160: 2
A161: 3 | B161: 2
A162: 4 | B162: 3
A163: 4 | B163: 3
A164: 4 | B164: 2
A165: 3 | B165: 2
A166: 2 | B166: 1
A167: 2 | B167: 1
A168: 3 | B168: 3
A169: 2 | B169: 2
A170: 3 | B170: 2
A171: 1 | B171: 3
A172: 4 | B172: 3
A173: 1 | B173: 2
A174: 2 | B174: 1
A175: 4 | B175: 3
A176: 3 | B176: 2
A177: 1 | B177: 1
A178: 2 | B178: 2
A179: 4 | B179: 1
A180: 4 | B180: 2
A181: 4 | B181: 3
A182: 3 | B182: 2
A183: 2 | B183: 3
A184: 3 | B184: 3
A185: 3 | B185: 2
A186: 3 | B186: 3
A187: 4 | B187: 3
A188: 1 | B188: 1
A189: 3 | B189: 2
A190: 3 | B190: 2
A191: 4 | B191: 2
A192: 2 | B192: 3
A193: 4 | B193: 2
A194: 4 | B194: 3
A195: 3 | B195: 2
A196: 4 | B196: 3
A197: 1 | B197: 3
A198: 2 | B198: 3
A199: 1 | B199: 1
A200: 1 | B200: 3
... 141 more rows
